{"text_format":"1","workbook":"xlsx","n_sheets":5,"sheets":["Liens","HistoriquePilote","BD","ListeDesTextbox","Parametres"],"not_rendered":{"charts":0,"images":4,"macros":1,"external_links":0,"defined_names":5,"comments":1,"pivot_tables":0},"unopened":[],"bounds":{"document_bytes":16777216,"sheet_cells":100000,"rows_first":2000,"rows_last":500,"rows_between":2000,"halvings":0,"cell_chars":16384,"cell_head_chars":4096},"cells_cut":0,"cells_raw":0,"read":"whole","date_system":"1900"}

{"sheet":"Liens","index":0,"n_rows":6,"n_cols":4,"rows_kept":6,"cut":false,"hidden":true,"merged":[]}
["L_Id","C_id","Type","Lien"]
[1,1,"Doc","D:\\Compostelle--GR34\\Avant d'acheter un sac à dos.pdf"]
[2,1,"Doc","D:\\Excel\\base_donnees\\FERDINAND ESSAI\\premier-1.png"]
[3,7,"Doc","D:\\Compostelle--GR34\\Clermont-Ferrand-Cahorss-2012.pdf"]
[4,1,"Img","D:\\Excel\\base_donnees\\FERDINAND ESSAI\\dernier-1.jpg"]
[5,6,"Img","D:\\Competitions Vol a Voile\\MATRICE--2023\\GESTION-DES-CONCURENTS\\PHOTOS\\NoImage.jpg"]

{"sheet":"HistoriquePilote","index":1,"n_rows":7,"n_cols":11,"rows_kept":7,"cut":false,"hidden":false,"merged":[]}
[]
["Nom","Prenom","DateN","Ville","tel1","tel2","Mail","Pays","RankingID",null,"Exemple pour colonne (I) rankingID"]
["A2","Jean denis","04/01/1968","Urdés-10",400,300,"ABC@Gmail.com","France"]
["A3","Louis","26/07/1979","Urdés-11",400,300,"ABC@Gmail.com","France"]
["A4","Jean louis","11/06/1964","Urdés-12",400,300,"ABC@Gmail.com","France"]
["A8","Pierre","13/09/1952","",0,0,"",""]
["A5","Alex","08/05/1963","Urdés-13",400,300,"ABC@Gmail.com","France",1210]

{"sheet":"BD","index":2,"n_rows":7,"n_cols":141,"rows_kept":7,"cut":false,"hidden":false,"merged":[]}
[]
[null,null,null,null,null,null,null,null,null,null,null,null,null,null,null,null,null,null,19]
["ID","Horodateur","AdresseMail","Civilite","Nom","Prenom","DateN","Age","adresse complette","Code postal","Ville","Pays","Autres Mail","InvitésOu…","Tel1","Tel2","Club","Catégorie","RankingID","RankingPosition","CodeFFVP","N°licenceFFVP","N°GIVAV","Profession","Certif Médical","Délivré Le","Fin de\n validité","N°LICENCEFAI","N° RC PILOTE\n","DATE RC PILOTE","Autorisation\nparentale","Nom Prénom et \ntéléphone parentale","DateArrivée","ObservationPilote","Colonne2","Colonne22","Civi-Copi","Nom-Copi","Prénom-copilote","Date de \nnaissanceCO","LIEU-DE-naissance","Professioncopilote","TélCopiF","TélCopiP","Club copi","N°Licence","Code Membre\nFFVP","N°GIVAVCopi","Ranking ID2","Ranking \nPosition","Mail Copi","Certicat\nmédical","Délivré","Fin de \nvalidation","Observation-copilote","Colonne7","Colonne8","CivilDep","NomDep","PrènomDep","TéléphoneDep","Colonne5","Colonne1","Civilité\nContact","Nom\ncontact","Prènom\ncontact","Téléphone \ncontact","Colonne6","vide5","NomPlaneur","Immat..","Nconcours","CatégorieP","MasseMax","Transpondeur","Dispositif-Envol","DisposeTurboAutres","LoggerPrincipal","N°Flarm","LoggerSecours","Noms des logger","Validation \ncontôle","Nom du \ncontôleur","Câble de remorquage","Carnet \nde route","Manuel \nde vol","Fiche \nde pesé ","1-Propriétaire\n2-Locataire\n3-Exploitant","Raison sociale \ndu planeur","Adresse\n planeur","ObservationPlaneur","vide","Colonne4","Montant-inscription","Date Paiement\n reçu","RéservationCouchage","Montant-Camping","Date Payé\ncamping","Par","N°Chèque ou\nvirement(campg)","Acompte-(1)","DateAcp(1)","Par Acompte\n(1)","N°Chèque\nvirement(1)","Acompte-(2)","DateAcp(2)","Par \nAcompte (2)","N°Chèque\nvirement(2)","Montant-TT","Solde-restant","Nom \nbanque","ValidationSeeyouCompet","ResteInscrit","Observation-Compta","Vide3","Vide4","C.I","Date CI","C.D.N ","Date C.D.N","C.E.N","Date C.E.N","L.S.A","N° Assurance","Validité ASS","vide1","vide2","TestPCR(O/N)","DateTestPCR","QuestRemplie(O/N)","DateRéception","Confirmé","Colonne3","(1)","(2) ","(3) ","(4) Pilotes\n français seulement ","(5) Récépissé\npayements","ParkingIGC","GoogleForm","Observations-Diverses"]
[16,"2022-02-14T10:17:54","ABC@Gmail.com","Mr","A4","Jean louis","1964-06-11",null,null,null,null,"France",null,null,"00 00 00 04 00 ","00 00 00 03 00 ","Club-16",null,6553]
[6,"02/03/2022 21:13:34","ABC@Gmail.com","Mr","A6","Arnaud","20/01/1974",null,null,null,"Urdés-14","France",null,null,400,300,"Club-14",null,11847]
[15,"2/13/2022 10:51:46","ABC@Gmail.com","Mr","A7","Philippe","02/10/1974",null,null,null,"Urdés-15","France",null,null,400,300,"Club-15",null,6553]
[18,"2022-02-13T10:51:47","ABC@Gmail.com","Mr","A8","Pierre","1952-09-13",null,null,null,null,"Belgium",null,null,"00 00 00 04 00 ","00 00 00 03 00 ","Club-17",null,6553]

{"sheet":"ListeDesTextbox","index":3,"n_rows":144,"n_cols":7,"rows_kept":144,"cut":false,"hidden":true,"merged":[]}
[]
[]
[null,null,null,null,null,null,"Arr(0) = NID"]
[null,null,null,"tb1","Horodateur",null,"    Arr(1) = tb1"]
[null,null,null,"tb2","Mail ",null,"    Arr(2) = tb2"]
[null,null,null,"    On Error Resume Next",null,null,"    On Error Resume Next"]
[null,null,null,"CmbCivilite","tb3",null,"    Arr(3) = CmbCivilite 'tb3 '"]
[null,null,null,"tb4","Nom",null,"    Arr(4) = tb4 'Nom pilote"]
[null,null,null,"tb5","Prènom",null,"    Arr(5) = tb5"]
[null,null,null,"tb6","Date Né + calendrier",null,"    Arr(6) = CLng(CDate(tb6)) 'tb6 date né pilote***Format(Date, \"dd/mm/yyyy\"))"]
[null,null,null,"tb7","Age",null,"    Arr(7) = tb7"]
[null,null,null,"tb8","Adresse complette ",null,"    Arr(8) = tb8"]
[null,null,null,"tb9","CP",null,"    Arr(9) = tb9"]
[null,null,null,"tb10","Ville",null,"    Arr(10) = tb10"]
[null,null,null,"CmbPaysINS","Pays   associes avec Combobox (tb11 supprimer)",null,"    Arr(11) = Me.CmbPaysINS 'tb11"]
[null,null,null,"tb12","Autres mail",null,"    Arr(12) = tb12"]
[null,null,null,"tb13","Invités",null,"    Arr(13) = CmbInvite"]
[null,null,null,"tb14","Tel1",null,"    Arr(14) = tb14"]
[null,null,null,"tb15","Tel2",null,"    Arr(15) = tb15"]
[null,null,null,"ComboClub","Club   associes avec Combobox (tb16 supprimer)",null,"    Arr(16) = ComboClub"]
[null,null,null,"CmbCat","Catégorie  associes avec Combobox  (tb17 supprimer)",null,"    Arr(17) = CmbCat"]
[null,null,null,"tb18","Ranking ID",null,"    Arr(18) = tb18"]
[null,null,null,"tb19","Ranking Position",null,"    Arr(19) = tb19"]
[null,null,null,"tb20","Code membre  FFVP",null,"    Arr(20) = tb20"]
[null,null,null,"tb21","N° license FFVP",null,"    Arr(21) = tb21"]
[null,null,null,"tb22","GIVAV",null,"    Arr(22) = tb22"]
[null,"CmbOuiP",null,"tb23","Profession",null,"    Arr(23) = tb23"]
[null,null,null,"tb24","Medical  associes avec Combobox",null,"    Arr(24) = CmbOuiP 'tb24"]
[null,null,null,"tb25","Delivré le  + calendrier",null,"    Arr(25) = CLng(CDate(tb25)) 'tb25"]
[null,null,null,"tb26","Finde validité + calendrier",null,"    Arr(26) = CLng(CDate(tb26)) 'tb26"]
[null,null,null,"tb27","Licence FAI",null,"    Arr(27) = tb27"]
[null,null,null,"tb28","N° RC pilote",null,"    Arr(28) = tb28"]
[null,null,null,"tb29","Validité RC pilte + calendrier",null,"    Arr(29) = CLng(CDate(tb29)) 'tb29"]
[null,null,null,"CmbParentale","tb30",null,"    Arr(30) = CmbParentale 'tb30"]
[null,null,null,"tb31","Nom de l'autorisation parentale",null,"    Arr(31) = tb31"]
[null,null,null,"tb32","Date arrivée + calendrier",null,"    Arr(32) = CLng(CDate(tb32)) 'tb32"]
[null,null,null,"tb33","Commentaires pilote",null,"    Arr(33) = tb33"]
[null,null,"AI",null,null,null,"    ' 2 colonnes de vide"]
[null,null,"AJ",null," 2 colonnes de vide",null,"    ' 2 colonnes de vide"]
[null,null,null,"CmbCiviliteCopi","tb36",null,"    Arr(36) = CmbCiviliteCopi 'tb36"]
[null,null,null,"tb37","Nom copilote",null,"    Arr(37) = UCase(tb37)"]
[null,null,null,"tb38",null,null,"    Arr(38) = tb38"]
[null,null,null,"tb39",null,null,"    Arr(39) = CLng(CDate(tb39)) 'tb39"]
[null,null,null,"tb40",null,null,"    Arr(40) = tb40"]
[null,null,null,"tb41",null,null,"    Arr(41) = tb41"]
[null,null,null,"tb42",null,null,"    Arr(42) = tb42"]
[null,null,null,"tb43",null,null,"    Arr(43) = tb43"]
[null,null,null,"CmbClubCopi","tb44",null,"    Arr(44) = CmbClubCopi 'tb44"]
[null,null,null,"tb45",null,null,"    Arr(45) = tb45"]
[null,null,null,"tb46",null,null,"    Arr(46) = tb46"]
[null,null,null,"tb47",null,null,"    Arr(47) = tb47"]
[null,null,null,"tb48",null,null,"    Arr(48) = tb48"]
[null,null,null,"tb49",null,null,"    Arr(49) = tb49"]
[null,null,null,"tb50",null,null,"    Arr(50) = tb50"]
[null,null,null,"CmbCertifCopi","tb51",null,"    Arr(51) = CmbCertifCopi 'tb51"]
[null,null,null,"tb52",null,null,"    Arr(52) = CLng(CDate(tb52)) 'tb52"]
[null,null,null,"tb53",null,null,"    Arr(53) = CLng(CDate(tb53)) 'tb53"]
[null,null,null,"tb54","Commentaires copilote",null,"    Arr(54) = tb54"]
[null,null,"BD",null,null,null,"  ' 2 colonnes de vide"]
[null,null,"BE",null," 2 colonnes de vide",null,"  ' 2 colonnes de vide"]
[null,null,null,"CmbCivDep","tb55",null,"    Arr(57) = CmbCivDep 'tb55"]
[null,null,null,"tb56",null,null,"    Arr(58) = UCase(tb56)"]
[null,null,null,"tb57",null,null,"    Arr(59) = tb57"]
[null,null,null,"tb58",null,null,"    Arr(60) = tb58"]
[null,null,"BJ",null,null,null,"  ' 2 colonnes de vide"]
[null,null,"BK",null,null,null,"  ' 2 colonnes de vide"]
[null,null,null,"CmbCivPer","tb59",null,"    Arr(63) = CmbCivPer 'tb59"]
[null,null,null,"tb60",null,null,"    Arr(64) = UCase(tb60)"]
[null,null,null,"tb61",null,null,"    Arr(65) = tb61"]
[null,null,null,"tb62","Tel contact",null,"    Arr(66) = tb62"]
[null,null,"BP",null," 2 colonnes de vide",null,"  ' 2 colonnes de vide"]
[null,null,"BQ",null,null,null,"  ' 2 colonnes de vide"]
[null,null,null,"CmbTypePL","tb63 nomplaneur",null,"    Arr(69) = CmbTypePL"]
[null,null,null,"tb64","Immat planeur",null,"    Arr(70) = tb64"]
[null,null,null,"tb65",null,null,"    Arr(71) = tb65"]
[null,null,null,"tb66","Information venant des inscriptions Catégorie planeur",null,"    Arr(72) = tb66"]
[null,null,null,"tb67",null,null,"    Arr(73) = tb67"]
[null,null,null,"tb68",null,null,"    Arr(74) = CmbTrans '"]
[null,null,null,"CmbEnvol","tb69 supprimer ",null,"    Arr(75) = CmbEnvol '"]
[null,null,null,"CmbTurbo","tb70 supprimer ",null,"    Arr(76) = CmbTurbo '"]
[null,null,null,"tb71",null,null,"    Arr(77) = tb71"]
[null,null,null,"tb72",null,null,"    Arr(78) = UCase(tb72.Text) 'tb72"]
[null,null,null,"tb73",null,null,"    Arr(79) = tb73"]
[null,null,null,"tb74","Planeur",null,"    Arr(80) = tb74"]
[null,null,null,"CmbControle","tb75",null,"    Arr(81) = CmbControle 'tb75"]
[null,null,null,"CmbControleur","tb76  supprimer ",null,"    Arr(82) = CmbControleur '76"]
[null,null,null,"CmbCable","tb77",null,"    Arr(83) = CmbCable '77"]
[null,null,null,"CmbCbord","tb78",null,"    Arr(84) = CmbCbord '78"]
[null,null,null,"CmbPese","tb79",null,"    Arr(85) = CmbPese '79"]
[null,null,null,"CmbMvol","tb80",null,"    Arr(86) = CmbMvol '80"]
[null,null,null,"CmbProprio","tb81",null,"    Arr(87) = CmbProprio '81"]
[null,null,null,"tb82",null,null,"    Arr(88) = tb82"]
[null,null,null,"tb83",null,null,"    Arr(89) = tb83"]
[null,null,null,"tb84","Commentaires planeurs",null,"    Arr(90) = tb84"]
[null,null,"CN",null,null,null,"  ' 2 colonnes de vide"]
[null,null,"CO",null," 2 colonnes de vide",null,"  ' 2 colonnes de vide"]
[null,null,null,"tb85","Montant inscription",null,"    Arr(93) = tb85"]
[null,null,null,"tb86",null,null,"    Arr(94) = CLng(CDate(tb86)) 'tb86"]
[null,null,null,"CmbCamp","tb87",null,"    Arr(95) = CmbCamp 'tb87"]
[null,null,null,"tb88",null,null,"    Arr(96) = tb88"]
[null,null,null,"tb89",null,null,"    Arr(97) = CLng(CDate(tb89)) 'tb89"]
[null,null,null,"CmbCamping","tb90",null,"    Arr(98) = CmbCamping 'tb90"]
[null,null,null,"tb91",null,null,"    Arr(99) = tb91"]
[null,null,null,"tb92",null,null,"    Arr(100) = tb92"]
[null,null,null,"tb93",null,null,"    Arr(101) = CLng(CDate(tb93)) 'tb93"]
[null,null,null,"CmbAcc","tb94",null,"    Arr(102) = tb94"]
[null,null,null,"tb95",null,null,"    Arr(103) = tb95"]
[null,null,null,"tb96",null,null,"    Arr(104) = tb96"]
[null,null,null,"tb97",null,null,"    Arr(105) = CLng(CDate(tb97)) 'tb97"]
[null,null,null,"CmbAcc2","tb98",null,"    Arr(106) = CmbAcc2 'tb98"]
[null,null,null,"tb99",null,null,"    Arr(107) = tb99"]
[null,null,null,"tb100",null,null,"    Arr(108) = tb100"]
[null,null,null,"tb101",null,null,"    Arr(109) = tb101"]
[null,null,null,"CmbBanque","tb102",null,"    Arr(110) = CmbBanque 'tb102"]
[null,null,null,"tb103",null,null,"    Arr(111) = tb103"]
[null,null,null,"ComboReste","tb104",null,"    Arr(112) = ComboReste 'tb104"]
[null,null,null,"tb105","Commentaires compta",null,"    Arr(113) = tb105"]
[null,null,"DK",null," 2 colonnes de vide",null,"' 2 colonnes de vide"]
[null,null,"DL",null,null,null,"' 2 colonnes de vide"]
[null,null,null,"tb106",null,null,"    Arr(116) = tb106                   'complement police"]
[null,null,null,"tb107",null,null,"    Arr(117) = CLng(CDate(tb107))      'tb107 ' complement police"]
[null,null,null,"tb108",null,null,"    Arr(118) = tb108                   'complement police"]
[null,null,null,"tb109",null,null,"    Arr(119) = CLng(CDate(tb109))      'tb109 ' 'complement police"]
[null,null,null,"tb110",null,null,"    Arr(120) = tb110                   'complement police"]
[null,null,null,"tb111",null,null,"    Arr(121) = CLng(CDate(tb111))      'tb111 ' 'complement police"]
[null,null,null,"tb112",null,null,"    Arr(122) = tb112                   'complement police"]
[null,null,null,"tb113",null,null,"    Arr(123) = tb113                   'complement police"]
[null,null,null,"tb114",null,null,"    Arr(124) = CLng(CDate(tb114))      'tb114 ' 'complement police"]
[null,null,"UV",null,null,null,"' 2 colonnes de vide"]
[null,null,"UW",null," 2 colonnes de vide",null,"' 2 colonnes de vide"]
[null,null,null,"CmbTest","tb115",null,"    Arr(127) = CmbTest                 'tb115 'Covid"]
[null,null,null,"tb116","'Covid",null,"    Arr(128) = CLng(CDate(tb116))      'tb116 'Covid"]
[null,null,null,"CmbQues","tb117",null,"    Arr(129) = CmbQues                 'tb117 'Covid"]
[null,null,null,"tb118","'Covid",null,"    Arr(130) = CLng(CDate(tb118))      'tb118 ''Covid"]
[null,null,null,"CmbConfirme","tb119",null,"    Arr(131) = CmbConfirme             'tb119 'Covid"]
[null,null,"EC",null,"' 1 colonnes de vide",null,"' 1 colonnes de vide"]
[null,null,null,"tb120",null,null,"    Arr(133) = tb120"]
[null,null,null,"tb121",null,null,"    Arr(134) = tb121"]
[null,null,null,"tb122",null,null,"    Arr(135) = tb122"]
[null,null,null,"tb123",null,null,"    Arr(136) = tb123"]
[null,null,null,"tb124",null,null,"    Arr(137) = tb124"]
[null,null,null,"tb125",null,null,"    Arr(138) = tb125"]
[null,null,null,"ComboGoogleForm","tb126",null,"    Arr(139) = ComboGoogleForm         'tb126"]
[null,null,null,"tb127","'Commentaires informations diverses",null,"    Arr(140) = tb127                   'Commentaires informations diverses"]

{"sheet":"Parametres","index":4,"n_rows":162,"n_cols":37,"rows_kept":162,"cut":false,"hidden":true,"merged":[[29,27,29,29],[29,31,29,34],[2,26,2,33],[7,28,7,29],[9,28,9,31],[11,28,11,31],[12,28,12,31],[4,26,4,27],[13,26,13,27],[13,28,13,29],[27,27,27,29],[27,31,27,34],[28,27,28,29],[28,31,28,34],[17,27,17,30],[32,27,32,29],[32,31,32,34],[33,27,33,29],[33,31,33,34],[15,26,15,33],[22,26,22,33],[24,27,24,29],[24,31,24,34],[25,27,25,29],[25,31,25,34],[31,27,31,29],[31,31,31,34],[26,27,26,29],[26,31,26,34],[30,27,30,29],[30,31,30,34],[34,27,34,29],[34,31,34,34],[35,27,35,29],[35,31,35,34],[36,27,36,29],[36,31,36,34],[40,27,40,29],[37,27,37,29],[37,31,37,34],[38,27,38,29],[38,31,38,34],[39,27,39,29],[39,31,39,34]]}
[]
[null,null,null,null,null,null,null,null,null,null,null,null,null,null,null,null,null,null,null,null,"Pour les sauvegardes dans dossiers respectif"]
["Civilité",null,"Catégorie",null,"Club",null,"Invité ou …",null,"Oui/Non",null,"Nom Planeur",null,"Nom Contôleur",null,"banque",null,"N° Factures",null,"Liste des dossiers ",null,"Saisir le Nom du Dossier de la compétion dans la liste déroulante en  (U4)",null,"Nom","Montant"]
["Mr",null,"15 mètres",null,"AC Auzainvilliers Plaine des Vosges",null,"---",null,"Oui",null,"tbd",null,"---",null,"---",null,1,null,"BUNO-2023",null,"MATRICE--2023",null,"Inscription",270]
["Mme",null,"18 mètres",null,"AC Espoir Aéronautique de Sarreguemines",null,"Sélectionnés",null,"Non",null,"Arcus",null,"Jean claude Ferdinand",null,"Banque populaire",null,null,null,"MARMANDE-2023",null,"REGROUPEMENT DES Sauvegardes DGAC , FACTURES , INSCRIPTIONS",null,"Tentes",40]
["Melle",null,"20 mètres",null,"Aéro Club Albert Mangeot",null,"Invités - Hors concours",null,null,null,"Arcus 2 T",null,"Pascal Lachaise",null,"Banque Postale",null,"N° DGAC",null,"PERIGUEUX-2022",null,{"$f":"CONCATENATE(\"D:\\Competitions Vol a Voile\\\",$U$4,\"\\GESTION-DES-CONCURENTS\\REGROUPEMENT-DGAC-FAC-INSCRIP\\\")","v":"D:\\Competitions Vol a Voile\\MATRICE--2023\\GESTION-DES-CONCURENTS\\REGROUPEMENT-DGAC-FAC-INSCRIP\\"},null,"Camping/car",40]
[null,null,"Standard",null,"Aéro Club Alpin",null,"Listes d'attente (Sélectionnés)",null,null,null,"Arcus M",null,"Daniel Barbaza",null,"BCI",null,2,null,"RION-des-LANDES-23",null,"Sauvegarde des logements Pilotes et leurs Arrivées"]
[null,null,"Club",null,"Aéro Club Blois-Vendôme",null,"Listes d'attente (Invités - Hors concours)",null,null,null,"Arcus20-T",null,"Regis Kuntz",null,"Caisse d'Epargne",null,null,null,"AUCH-2023",null,{"$f":"CONCATENATE(\"D:\\Competitions Vol a Voile\\\",$U$4,\"\\GESTION-DES-CONCURENTS\\LOGEMENTS PILOTES & ARRIVEE\\\")","v":"D:\\Competitions Vol a Voile\\MATRICE--2023\\GESTION-DES-CONCURENTS\\LOGEMENTS PILOTES & ARRIVEE\\"}]
[null,null,"Libre",null,"Aéro Club Chambley",null,null,null,"Comfirme",null,"AS33 ",null,"Joël PASCAUD",null,"Crédit Agricole",null,"N° Inscription",null,"MATRICE--2023",null,"Sauvegardes toutes pages en PDF"]
["Pays",null,"Mondiale (world class)",null,"Aéro Club Charentais",null,null,null,"--",null,"AS33 Es",null,null,null,"Crédit industriel et commercial",null,1,null,"COULOUMIER-23",null,{"$f":"CONCATENATE(\"D:\\Competitions Vol a Voile\\\",$U$4,\"\\GESTION-DES-CONCURENTS\\SauvegardesDesPDF\\\")","v":"D:\\Competitions Vol a Voile\\MATRICE--2023\\GESTION-DES-CONCURENTS\\SauvegardesDesPDF\\"},null,null,null,null,null,null,null,"Dates et Durée effective :"]
["Andorra",null,null,null,"Aéro Club d'Aire sur l'Adour",null,"Câble  remorquage",null,"Comfirme",null,"AS33Es",null,null,null,"Crédit lyonais",null,null,null,null,null,"Dossier LISTE DES FLARM"]
["Belarus",null,null,null,"Aéro Club de Blainville",null,"tbd",null,null,null,"ASG 29 Es",null,null,null,"Credit Mutuel",null,null,null,null,null,{"$f":"CONCATENATE(\"D:\\Competitions Vol a Voile\\\",$U$4,\"\\GESTION-DES-CONCURENTS\\Liste-Flarm-IGC\\\")","v":"D:\\Competitions Vol a Voile\\MATRICE--2023\\GESTION-DES-CONCURENTS\\Liste-Flarm-IGC\\"},null,null,null,null,null,null,"Premier jour",{"$f":"$AB$25","v":"2022-07-17"}]
["Belgium",null,null,null,"Aéro Club de Brioude",null,"Je n'ai pas de câble",null,null,null,"ASG29",null,null,null,"HSBC",null,null,null,null,null,"Dossier LISTE DES DEPAN-COPILOTES-AUTONOME",null,null,null,null,null,null,"Dernier jour",{"$f":"$AB$41","v":"2022-07-23"}]
["Bulgaria",null,null,null,"Aéro Club de Chauvigny",null,"Je m'engage à fournir un câble",null,null,null,"ASH 25 (750 kg)",null,null,null,"HSBC londres",null,null,null,null,null,{"$f":"CONCATENATE(\"D:\\Competitions Vol a Voile\\\",$U$4,\"\\GESTION-DES-CONCURENTS\\LISTE-PILOTES-DEPAN-COPI-AUTONOME\\\")","v":"D:\\Competitions Vol a Voile\\MATRICE--2023\\GESTION-DES-CONCURENTS\\LISTE-PILOTES-DEPAN-COPI-AUTONOME\\"},null,null,null,null,null,"Nombre de jours :",null,{"$f":"$AB$42","v":7}]
["Czech Republic",null,null,null,"Aéro Club de l'Ariège",null,null,null,"DispositifEnvol",null,"ASH 25 25.6m (750 kg)",null,null,null,"Validé",null,null,null,null,null,"BILAN COMPTA"]
["Denmark",null,null,null,"Aéro Club de l'Est",null,null,null,"tbd",null,"ASH 25 26M",null,null,null,null,null,null,null,null,null,{"$f":"CONCATENATE(\"D:\\Competitions Vol a Voile\\\",$U$4,\"\\GESTION-DES-CONCURENTS\\Bilan-Compta\\\")","v":"D:\\Competitions Vol a Voile\\MATRICE--2023\\GESTION-DES-CONCURENTS\\Bilan-Compta\\"}]
["Finland",null,null,null,"Aéro Club de Luchon",null,null,null,"Non",null,"ASH30 Mi",null,null,null,null,null,null,null,null,null,"Dossier fiche police"]
["France",null,"type",null,"Aéro Club de Morestel",null,"Appareil",null,"Autonome",null,"ASH31-21m",null,null,null,null,null,null,null,null,null,{"$f":"CONCATENATE(\"D:\\Competitions Vol a Voile\\\",$U$4,\"\\GESTION-DES-CONCURENTS\\FICHES-POLICE\\\")","v":"D:\\Competitions Vol a Voile\\MATRICE--2023\\GESTION-DES-CONCURENTS\\FICHES-POLICE\\"},null,null,null,null,null,"Date du jour",{"$f":"NOW()","v":"2023-01-15T11:17:31.620"}]
["Germany",null,"Espéces",null,"Aéro Club de Narbonne",null,"---",null,"Turbo",null,"ASW20F",null,null,null,null,null,null,null,null,null,"Sauvegarde Classeur"]
["Great Britain",null,"Chèque",null,"Aéro Club de Picardie-Amiens Métropole",null,"1-Propriétaire",null,"Turbine",null,"ASW27",null,null,null,null,null,null,null,null,null,{"$f":"CONCATENATE(\"D:\\Competitions Vol a Voile\\\",$U$4,\"\\GESTION-DES-CONCURENTS\\SauvegardeClasseur\\\")","v":"D:\\Competitions Vol a Voile\\MATRICE--2023\\GESTION-DES-CONCURENTS\\SauvegardeClasseur\\"}]
["Hungary",null,"Virement",null,"Aéro Club de Sologne",null,"2-Locataire",null,"Electrique",null,"C101A pégase"]
["Ireland",null,"Virement Internationnal",null,"Aéro Club Dinan",null,"3-Exploitant",null,null,null,"Discus 2a 15m"]
["Italy",null,"Compte pilote",null,"Aéro Club d'Issoudun",null,null,null,null,null,"Discus 2c",null,null,null,null,null,null,null,"Lieux compétition",null,"Nom compétition",null,null,null,null,null,"DUREE, DATES et LIEUX"]
["Lithuania",null,"Chèques Restaurant",null,"Aéro Club du Bas Armagnac",null,null,null,null,null,"Discus 2c FES",null,null,null,null,null,null,null,"Buno-2023",null,"Matrice participants 2023",null,null,null,null,null,"Nombre de jours",7,"1) Indiquer le nombre de jours prévu"]
["Luxembourg",null,null,null,"Aéro Club du Poitou",null,null,null,null,null,"Discus b",null,null,null,null,null,null,null,null,null,"BUNO--2023",null,null,null,null,null,"1er jour","2022-07-17",null,null,{"$f":"IF(AF26=\"\",\"\",\"Lieu :\")","v":"Lieu :"},"BUNO-BONEVEAU",null,null,null,{"$f":"IF(AF25=\"\",0,1)","v":1},"2) Indiquer la date au format xx/xx/xxxx et le lieu de l'evenement"]
["Netherlands",null,null,null,"Aéro Club Guil et Durance",null,"Quel-hébergement ","Prix",null,null,"Discus CS",null,null,null,null,null,null,null,null,null,null,null,null,null,null,null,"Jour 2",{"$f":"IF(AB24>1,AB25+1,\"\")","v":"2022-07-18"},null,null,{"$f":"IF(AF27=\"\",\"\",\"Lieu :\")","v":"Lieu :"},{"$f":"IF(AB26=\"\",\"\",AF25)","v":"BUNO-BONEVEAU"},null,null,null,1,{"$f":"IF(AF26=\"\",\"\",\"(Affichage automatique : ne modifier que si nécessaire)\")","v":"(Affichage automatique : ne modifier que si nécessaire)"}]
["Norway",null,null,null,"Aéro Club International de Sisteron",null,"Autres",null,null,null,"EB 29r",null,null,null,null,null,null,null,null,null,null,null,null,null,null,null,"Jour 3",{"$f":"IF(AB24>2,AB26+1,\"\")","v":"2022-07-19"},null,null,{"$f":"IF(AF27=\"\",\"\",\"Lieu :\")","v":"Lieu :"},"BUNO-BONEVEAU",null,null,null,1,"(Affichage automatique : ne modifier que si nécessaire)"]
["Poland",null,null,null,"Aéro Club Pierre Herbaud",null,"Camping car/ Van",40,null,null,"eb-29dr",null,null,null,null,null,null,null,null,null,null,null,null,null,null,null,"Jour 4",{"$f":"IF(AB24>3,AB27+1,\"\")","v":"2022-07-20"},null,null,"Lieu :","BUNO-BONEVEAU",null,null,null,1,"(Affichage automatique : ne modifier que si nécessaire)"]
["Portugal",null,"Reste en liste",null,"Aéro Club Sarrebourg Vol à Voile",null,"Caravane",40,null,null,"JS 1B Evo",null,null,null,null,null,null,null,null,null,null,null,null,null,null,null,"Jour 5",{"$f":"IF(AB24>4,AB28+1,\"\")","v":"2022-07-21"},null,null,"Lieu :","BUNO-BONEVEAU",null,null,null,1,{"$f":"IF(AF29=\"\",\"\",\"(Affichage automatique : ne modifier que si nécessaire)\")","v":"(Affichage automatique : ne modifier que si nécessaire)"}]
["Romania",null,"---",null,"Aéroclub d'Abbeville",null,"Gîte",null,null,null,"JS 1C Evo",null,null,null,null,null,null,null,null,null,null,null,null,null,null,null,"Jour 6",{"$f":"IF(AB24>5,AB29+1,\"\")","v":"2022-07-22"},null,null,"Lieu :","BUNO-BONEVEAU",null,null,null,1,"(Affichage automatique : ne modifier que si nécessaire)"]
["Serbia",null,"Reste en liste",null,"Aéroclub de l'Estuaire de la Seine",null,"Hotel",null,null,null,"JS1",null,null,null,null,null,null,null,null,null,null,null,null,null,null,null,"Jour 7",{"$f":"IF(AB24>6,AB30+1,\"\")","v":"2022-07-23"},null,null,"Lieu :","BUNO-BONEVEAU",null,null,null,1,"(Affichage automatique : ne modifier que si nécessaire)"]
["Slovakia",null,"Désistement",null,"Aéroclub des Goélands",null,"Tente",40,null,null,"JS1 C",null,null,null,null,null,null,null,null,null,null,null,null,null,null,null,"Jour 8",{"$f":"IF(AB24>7,AB31+1,\"\")","v":""},null,null,"","",null,null,null,0,""]
["Slovenia",null,"A remboursé",null,"Aéroclub du Lys",null,null,null,null,null,"JS1C ",null,null,null,null,null,null,null,null,null,null,null,null,null,null,null,"Jour 9",{"$f":"IF(AB24>8,AB32+1,\"\")","v":""},null,null,"",{"$f":"IF(AB33=\"\",\"\",AF32)","v":""},null,null,null,0,""]
["Spain",null,"Remboursé",null,"Aéroclub Saint-Rémy Les Alpilles",null,null,null,null,null,"JS1C Evo",null,null,null,null,null,null,null,null,null,null,null,null,null,null,null,"Jour 10",{"$f":"IF(AB24>9,AB33+1,\"\")","v":""},null,null,"",{"$f":"IF(AB34=\"\",\"\",AF33)","v":""},null,null,null,0,""]
["Sweden",null,"Nouveau inscrit",null,"Amicale Éric Nessler-La Ferté Alais",null,null,null,null,null,"JS1C-21m",null,null,null,null,null,null,null,null,null,null,null,null,null,null,null,"Jour 11",{"$f":"IF(AB24>10,AB34+1,\"\")","v":""},null,null,{"$f":"IF(AF35=\"\",\"\",\"Lieu :\")","v":""},{"$f":"IF(AB35=\"\",\"\",AF34)","v":""},null,null,null,0,""]
["Switzerland",null,null,null,"Ass. Aéronautique d'Aspres sur Buëch",null,null,null,null,null,"JS3",null,null,null,null,null,null,null,null,null,null,null,null,null,null,null,"Jour 12",{"$f":"IF(AB24>11,AB35+1,\"\")","v":""},null,null,{"$f":"IF(AF36=\"\",\"\",\"Lieu :\")","v":""},{"$f":"IF(AB36=\"\",\"\",AF35)","v":""},null,null,null,{"$f":"IF(AF36=\"\",0,1)","v":0},""]
["Ukraine",null,null,null,"Ass. Aéronautique de Coulommiers-Meaux",null,null,null,null,null,"JS3 Jet",null,null,null,null,null,null,null,null,null,null,null,null,null,null,null,"Jour 13",{"$f":"IF(AB24>12,AB36+1,\"\")","v":""},null,null,{"$f":"IF(AF37=\"\",\"\",\"Lieu :\")","v":""},{"$f":"IF(AB37=\"\",\"\",AF36)","v":""},null,null,null,{"$f":"IF(AF37=\"\",0,1)","v":0},""]
[null,null,null,null,"Ass. Aéronautique du Val d'Essonne",null,null,null,null,null,"JS3 TJ",null,null,null,null,null,null,null,null,null,null,null,null,null,null,null,"Jour 14",{"$f":"IF(AB24>13,AB37+1,\"\")","v":""},null,null,{"$f":"IF(AF38=\"\",\"\",\"Lieu :\")","v":""},{"$f":"IF(AB38=\"\",\"\",AF37)","v":""},null,null,null,{"$f":"IF(AF38=\"\",0,1)","v":0},""]
[null,null,null,null,"Ass. Aéronautique Provence Côte d'Azur",null,null,null,null,null,"LAK-17A",null,null,null,null,null,null,null,null,null,null,null,null,null,null,null,"Jour 15",{"$f":"IF(AB24>14,AB38+1,\"\")","v":""},null,null,{"$f":"IF(AF39=\"\",\"\",\"Lieu :\")","v":""},{"$f":"IF(AB39=\"\",\"\",AF38)","v":""},null,null,null,{"$f":"IF(AF39=\"\",0,1)","v":0},""]
[null,null,null,null,"Ass. Aéronautique Verdon Alpilles",null,null,null,null,null,"LS4",null,null,null,null,null,null,null,null,null,null,null,null,null,null,null,"Jour 16",{"$f":"IF(AB24>15,AB39+1,\"\")","v":""},null,null,{"$f":"IF(AF40=\"\",\"\",\"Lieu :\")","v":""},{"$f":"IF(AB40=\"\",\"\",AF39)","v":""},null,null,null,{"$f":"IF(AF40=\"\",0,1)","v":0},""]
[null,null,null,null,"Ass. Compiègnoise de Voile à Voile",null,null,null,null,null,"LS6",null,null,null,null,null,null,null,null,null,null,null,null,null,null,null,"Dernier jour",{"$f":"IF($AB24=16,AB40,IF($AB24=15,AB39,IF($AB24=14,AB38,IF($AB24=13,AB37,IF($AB24=12,AB36,IF($AB24=11,AB35,IF($AB24=10,AB34,IF($AB24=9,AB33,IF(AB24=8,AB32,IF($AB24=7,AB31,IF($AB24=6,AB30,IF($AB41=5,AB29,IF($AB41=4,AB28,IF($AB41=3,AB27,IF($AB41=2,AB26,IF($AB41=1,AB25,\"\"))))))))))))))))","v":"2022-07-23"},null,null,"Lieu :",{"$f":"IF(AB42=8,AF32,IF(AB42=7,AF31,IF(AB42=6,AF30,IF(AB42=5,AF29,IF(AB42=4,AF28,IF(AB42=3,AF27,IF(AB42=2,AF26,IF(AB42=1,AF25,\"\"))))))))","v":"BUNO-BONEVEAU"},null,null,null,null,"Affichage automatique : ne pas modifier"]
[null,null,null,null,"Ass. Sportive de Vol à Voile d'Angers",null,null,null,null,null,"LS6 17,5m",null,null,null,null,null,null,null,null,null,null,null,null,null,null,null,"Nombre de jours (contrôle)",{"$f":"SUM(AJ25:AJ40)","v":7},null,{"$f":"IF(AB24=AB42,\"\",\"ERREUR ?\")","v":""}]
[null,null,null,null,"Ass. Sportive Vélivole Raymond Delmotte",null,null,null,null,null,"LS8-18"]
[null,null,null,null,"Ass. Sportive Vélivole Soissonnaise",null,null,null,null,null,"Pegase"]
[null,null,null,null,"Ass. VàV Saint Dizier-Joinville-Mussey",null,null,null,null,null,"SF28 A"]
[null,null,null,null,"Ass. Véli. Château Arnoux-Saint Auban",null,null,null,null,null,"tbd"]
[null,null,null,null,"Ass. Vélivole Aéronautiqe Toulousaine",null,null,null,null,null,"Ventus 2cxa"]
[null,null,null,null,"Ass. Vélivole Perpignan-Roussillon",null,null,null,null,null,"VENTUS 2cxM"]
[null,null,null,null,"Ass. Vol à Voile Léonard de Vinci",null,null,null,null,null,"Ventus 2cxt"]
[null,null,null,null,"Ass. Vosgienne Sportive de Vol à Voile",null,null,null,null,null,"Ventus 3 TS"]
[null,null,null,null,"Associaion Vélivole du Tricastin",null,null,null,null,null,"Ventus C 17,6m"]
[null,null,null,null,"Association Aéronautique Creusoise"]
[null,null,null,null,"Association Aéronautique d'Aquitaine"]
[null,null,null,null,"Association Aéronautique de la Llagonne"]
[null,null,null,null,"Association Aéronautique de Rochecourbe"]
[null,null,null,null,"Association Aéronautique du Val d'Oise"]
[null,null,null,null,"Association Ardennaise de Vol à Voile"]
[null,null,null,null,"Association Belfortaine de Vol à Voile"]
[null,null,null,null,"Association Châlonnaise de Vol à Voile"]
[null,null,null,null,"Association des Ailes de l'Artois"]
[null,null,null,null,"Association Limousine de Sports Aériens"]
[null,null,null,null,"Association Monégasque de Vol à Voile"]
[null,null,null,null,"Association Tarnaise de Vol à Voile"]
[null,null,null,null,"Association Vélivole de Carpentras"]
[null,null,null,null,"Association Vélivole de Tarbes"]
[null,null,null,null,"Association Vélivole des Causses"]
[null,null,null,null,"Association Vol à Voile du Blanc"]
[null,null,null,null,"Ateliers Industriels de l'Aéronautique"]
[null,null,null,null,"Biscarosse Olympique Planeurs"]
[null,null,null,null,"Bourges Planeurs"]
[null,null,null,null,"Caen Falaise Planeurs"]
[null,null,null,null,"Cambrai Planeur Aéro Club"]
[null,null,null,null,"Centre Aéro. Vélivole de l'Avesnois"]
[null,null,null,null,"Centre Aéronautique de Beynes"]
[null,null,null,null,"Centre de Formation Planeur Alençon"]
[null,null,null,null,"Centre de Planeur de Troyes Aube"]
[null,null,null,null,"Centre de Planeurs du Sénonais"]
[null,null,null,null,"Centre de VàV de la Montagne Noire"]
[null,null,null,null,"Centre de VàV de Saint Florentin-Chéu"]
[null,null,null,null,"Centre de Vol à Voile Bressan"]
[null,null,null,null,"Centre de Vol à Voile de Chartres"]
[null,null,null,null,"Centre de Vol à Voile de la Crau"]
[null,null,null,null,"Centre de Vol à Voile de l'Eure"]
[null,null,null,null,"Centre de Vol à Voile de l'Ubaye"]
[null,null,null,null,"Centre de Vol à Voile de Montargis"]
[null,null,null,null,"Centre de Vol à Voile d'Haguenau"]
[null,null,null,null,"Centre de Vol à Voile d'Itxassou"]
[null,null,null,null,"Centre de Vol à Voile du Beaujolais"]
[null,null,null,null,"Centre de Vol à Voile du Périgord"]
[null,null,null,null,"Centre de Vol à Voile du Velay"]
[null,null,null,null,"Centre de Vol à Voile Lotois"]
[null,null,null,null,"Centre de Vol à Voile Lyonnais"]
[null,null,null,null,"Centre de Vol à Voile Marmandais"]
[null,null,null,null,"Centre de Vol à Voile Nivernais"]
[null,null,null,null,"Centre de Vol à Voile Roannais"]
[null,null,null,null,"Centre de Vol à Voile Thouarsais"]
[null,null,null,null,"Centre de Vol à Voile Vauville-Hague"]
[null,null,null,null,"Centre École de VàV de la Mayenne"]
[null,null,null,null,"Centre École de VàV du Haut Béarn"]
[null,null,null,null,"Centre Inst. Pratique VàV Strasbourg"]
[null,null,null,null,"Centre Inter Clubs Véli. Vosges Alsace"]
[null,null,null,null,"Centre National de Vol à Voile"]
[null,null,null,null,"Centre Planeurs de l'Aveyron"]
[null,null,null,null,"Centre Régional de VàV de Ghisonaccia"]
[null,null,null,null,"Centre Savoyard de Vol à Voile Alpin"]
[null,null,null,null,"Centre VàV de l'Aéroclub du Doubs"]
[null,null,null,null,"Centre VàV Fontainebleau et sa Région"]
[null,null,null,null,"Centre VàV Montpellier Pic Saint Loup"]
[null,null,null,null,"Centre Vélivole d'Auch"]
[null,null,null,null,"Centre Vélivole Foyen"]
[null,null,null,null,"Centre Vol à Voile Gardois"]
[null,null,null,null,"Chanet Vol à Voile"]
[null,null,null,null,"Club de Vol à Voile Air Inter"]
[null,null,null,null,"Club de Vol à Voile Flandres-Artois"]
[null,null,null,null,"Club Fournier International"]
[null,null,null,null,"Club Planeur Vol à Voile Saumurois"]
[null,null,null,null,"Club VàV de Langres-Rolampont-Chaumont"]
[null,null,null,null,"Club Vol à Voile de La Motte du Caire"]
[null,null,null,null,"Colibri"]
[null,null,null,null,"Dijon Planeurs"]
[null,null,null,null,"Elan Planeur"]
[null,null,null,null,"Grenoble Vol à Voile"]
[null,null,null,null,"Group. Préservation du Patrimoine Aéro."]
[null,null,null,null,"Groupe l'Air"]
[null,null,null,null,"Groupement Rouennais d'Aviation Légère"]
[null,null,null,null,"Les Ailes Angoumoises et Charentaises"]
[null,null,null,null,"Les Ailes Cognacaises"]
[null,null,null,null,"Les Ailes Dauphinoises"]
[null,null,null,null,"Les Ailes du Maine Planeurs"]
[null,null,null,null,"Les Planeurs d'Avignon Pujaut"]
[null,null,null,null,"Les Planeurs de Puivert en Quercy"]
[null,null,null,null,"Les Planeurs de Saintonge"]
[null,null,null,null,"Les Planeurs d'Orléans"]
[null,null,null,null,"Les Vélivoles de l'Agenais"]
[null,null,null,null,"Lille Planeurs"]
[null,null,null,null,"Luberon sous le Vent"]
[null,null,null,null,"Mulhouse Planeurs"]
[null,null,null,null,"Planeur Club de l'Atlantique"]
[null,null,null,null,"Planeur Club de Moulins"]
[null,null,null,null,"Planeur Club de Niort"]
[null,null,null,null,"Planeur Club des Coquelicots"]
[null,null,null,null,"Planeur Passion"]
[null,null,null,null,"Planeurs Club de Vichy"]
[null,null,null,null,"Planeurs Club Sud Vendée"]
[null,null,null,null,"Planeurs de Brocéliande"]
[null,null,null,null,"Planeurs de Rion des Landes"]
[null,null,null,null,"Planeurs d'Ille-et-Vilaine"]
[null,null,null,null,"Planeurs du Bassin d'Arcachon"]
[null,null,null,null,"Planeurs en Creuse"]
[null,null,null,null,"Planeurs Léman Mont-Blanc"]
[null,null,null,null,"Planeurs Paray Bourgogne Sud"]
[null,null,null,null,"Planeurs Pyrénées Comminges"]
[null,null,null,null,"Planeurs Tarn et Garonne"]
[null,null,null,null,"Pôle France Planeur"]
[null,null,null,null,"Reims Planeur"]
[null,null,null,null,"Section Aéro de l'ENIT de Tarbes"]
[null,null,null,null,"Seyne les Alpes Air Gliding Association"]
[null,null,null,null,"Ténarèze Gascogne Vélivole"]
[null,null,null,null,"Valence Planeurs"]
[null,null,null,null,"Vercors Vol à Voile"]
[null,null,null,null,"Vol à Voile du Haut Bugey"]
[null,null,null,null,"Vol à Voile Yonnais"]